[Event "Marienbad Open IM1 2020"]
[Site "Marianske Lazne"]
[Date "2020.01.22"]
[Round "6.6"]
[White "Plischki, Sebastian"]
[Black "Abhilash, Reddy M.L."]
[Result "1/2-1/2"]
[ECO "D11"]
[WhiteElo "2387"]
[BlackElo "2258"]
[Annotator "NA"]
[PlyCount "69"]
[EventDate "2020.01.18"]
[EventType "tourn"]
[EventCountry "CZE"]
[SourceTitle "playchess.com"]
[Source "ChessBase"]
[SourceQuality "1"]
[TimeControl "40/5400+30:1800+30"]

1. d4 {[%emt 0:00:00]} d5 {[%emt 0:00:00]} 2. c4 {[%emt 0:00:00]} c6 {[%emt 0:00:00]} 3. Nf3 {[%emt 0:00:00]} Nf6 {[%emt 0:00:00]} 4. Qc2 {[%emt 0:00:06]} g6 {[%emt 0:01:23]} 5. Bf4 {[%emt 0:00:16]} Bf5 {[%emt 0:04:10]} 6. Qb3 {[%emt 0:00:21]} Qb6 {[%emt 0:00:29]} 7. e3 {[%emt 0:00:56]} Bg7 {[%emt 0:00:35]} 8. Nc3 {[%emt 0:00:16]} Qxb3 {[%emt 0:02:39]} 9. axb3 {[%emt 0:00:07]} O-O {[%emt 0:00:05]} 10. c5 {[%emt 0:02:11]} Nbd7 {[%emt 0:03:09]} 11. h3 {[%emt 0:00:31]} Rfe8 {[%emt 0:01:55]} 12. b4 {[%emt 0:00:17]} a6 {[%emt 0:00:17]} 13. Be2 {[%emt 0:04:20]} Ne4 {[%emt 0:18:58]} 14. g4 {[%emt 0:05:52]} Nxc3 {[%emt 0:04:00]} 15. bxc3 {[%emt 0:00:07]} Be4 {[%emt 0:00:09]} 16. O-O {[%emt 0:00:56]} Bxf3 {[%emt 0:08:29]} 17. Bxf3 {[%emt 0:00:14]} e5 {[%emt 0:00:04]} 18. Bg3 {[%emt 0:01:23]} Nf8 {[%emt 0:06:40]} 19. Bg2 {[%emt 0:04:34]} Rad8 {[%emt 0:04:26]} 20. Rfd1 {[%emt 0:03:06]} exd4 {[%emt 0:03:43]} 21. cxd4 {[%emt 0:03:12]} Rc8 {[%emt 0:01:22]} 22. Bd6 {[%emt 0:03:55]} Ne6 {[%emt 0:02:07]} 23. h4 {[%emt 0:07:48]} Nc7 {[%emt 0:04:04]} 24. g5 {[%emt 0:02:32]} Nb5 {[%emt 0:00:19]} 25. Bf4 {[%emt 0:01:49]} f5 {[%emt 0:03:53]} 26. gxf6 {[%emt 0:03:40]} Bxf6 {[%emt 0:00:02]} 27. h5 {[%emt 0:04:12]} g5 {[%emt 0:00:50]} 28. Bg3 {[%emt 0:00:30]} Re7 {[%emt 0:03:36]} 29. Rdc1 {[%emt 0:04:48]} Kg7 {[%emt 0:02:20]} 30. Bh3 {[%emt 0:02:33]} Rce8 {[%emt 0:02:28]} 31. Kg2 {[%emt 0:01:04]} Rf7 {[%emt 0:01:18]} 32. Bg4 {[%emt 0:02:00]} Rfe7 {[%emt 0:00:07]} 33. Bf5 {[%emt 0:01:42]} Kh6 {[%emt 0:00:15]} 34. Ra2 {[%emt 0:06:15]} Rf7 {[%emt 0:00:24]} 35. Bg4 {[%emt 0:00:49]} 1/2-1/2

[Event "Marienbad Open IM1 2020"]
[Site "Marianske Lazne"]
[Date "2020.01.22"]
[Round "6.7"]
[White "Tymrakiewicz, Rafal"]
[Black "Vagman, Roy"]
[Result "0-1"]
[ECO "D26"]
[WhiteElo "2254"]
[BlackElo "2089"]
[Annotator "ChessBase"]
[PlyCount "90"]
[EventDate "2020.01.18"]
[EventType "tourn"]
[EventCountry "CZE"]
[SourceTitle "playchess.com"]
[Source "ChessBase"]
[SourceQuality "1"]
[TimeControl "40/5400+30:1800+30"]

1. Nf3 {[%emt 0:00:00]} d5 {[%emt 0:00:00]} 2. e3 {[%emt 0:00:39]} Nf6 {[%emt 0:02:48]} 3. c4 {[%emt 0:01:07]} dxc4 {[%emt 0:01:05]} 4. Bxc4 {[%emt 0:00:30]} e6 {[%emt 0:01:37]} 5. O-O {[%emt 0:02:32]} c5 {[%emt 0:00:59]} 6. Nc3 {[%emt 0:02:08]} Be7 {[%emt 0:01:15]} 7. d4 {[%emt 0:00:31]} cxd4 {[%emt 0:00:27]} 8. exd4 {[%emt 0:00:52]} Nc6 {[%emt 0:00:28]} 9. Bg5 {[%emt 0:06:40]} O-O {[%emt 0:01:16]} 10. Re1 {[%emt 0:05:51]} a6 {[%emt 0:03:09]} 11. a4 {[%emt 0:13:59]} h6 {[%emt 0:18:11]} 12. Bh4 {[%emt 0:03:02]} Nh5 {[%emt 0:01:31]} 13. Bxe7 {[%emt 0:04:57]} Nxe7 {[%emt 0:00:02]} 14. Ne5 {[%emt 0:07:05]} Nf6 {[%emt 0:00:53]} 15. Qd3 {[%emt 0:10:56]} Bd7 {[%emt 0:19:52]} 16. Rad1 {[%emt 0:01:05]} Rc8 {[%emt 0:05:00]} 17. Ba2 {[%emt 0:01:33]} g6 {[%emt 0:05:25]} 18. Qf3 {[%emt 0:12:41]} Ned5 {[%emt 0:04:30]} 19. Nxd5 {[%emt 0:01:17]} Nxd5 {[%emt 0:00:30]} 20. Qh3 {[%emt 0:00:43]} Bxa4 {[%emt 0:04:26]} 21. b3 {[%emt 0:12:40]} Bb5 {[%emt 0:02:06]} 22. Qxh6 {[%emt 0:03:11]} Qf6 {[%emt 0:00:27]} 23. Rd2 {[%emt 0:04:38]} Rc3 {[%emt 0:02:28]} 24. Bb1 {[%emt 0:01:52]} Qf4 {[%emt 0:01:34]} 25. Qxf4 {[%emt 0:01:17]} Nxf4 {[%emt 0:00:01]} 26. g3 {[%emt 0:00:27]} Nd5 {[%emt 0:03:02]} 27. h4 {[%emt 0:00:29]} Rfc8 {[%emt 0:00:26]} 28. Kh2 {[%emt 0:00:39]} Rxb3 {[%emt 0:01:00]} 29. Ba2 {[%emt 0:00:36]} Rbc3 {[%emt 0:00:22]} 30. h5 {[%emt 0:00:29]} gxh5 {[%emt 0:00:23]} 31. Bb1 {[%emt 0:00:33]} Rc1 {[%emt 0:00:27]} 32. Rxc1 {[%emt 0:00:13]} Rxc1 {[%emt 0:00:01]} 33. Be4 {[%emt 0:00:01]} Kg7 {[%emt 0:00:50]} 34. Kh3 {[%emt 0:00:24]} f6 {[%emt 0:02:13]} 35. Nd3 {[%emt 0:01:15]} Bxd3 {[%emt 0:01:27]} 36. Bxd3 {[%emt 0:00:09]} b5 {[%emt 0:00:56]} 37. Be2 {[%emt 0:00:47]} f5 {[%emt 0:01:18]} 38. Kh4 {[%emt 0:00:39]} Kf6 {[%emt 0:01:40]} 39. Bf3 {[%emt 0:00:27]} b4 {[%emt 0:00:45]} 40. Kh3 {[%emt 0:00:34]} Rc3 {[%emt 0:00:35]} 41. Kg2 {[%emt 0:01:01]} b3 {[%emt 0:00:57]} 42. Bxh5 {[%emt 0:00:48]} Rc2 {[%emt 0:02:15]} 43. Rd3 {[%emt 0:00:32]} b2 {[%emt 0:00:17]} 44. Rb3 {[%emt 0:00:43]} Nc3 {[%emt 0:00:32]} 45. d5 {[%emt 0:01:11]} b1=Q {[%emt 0:00:32]} 0-1

[Event "Marienbad Open IM1 2020"]
[Site "Marianske Lazne"]
[Date "2020.01.24"]
[Round "8.9"]
[White "Steiner, Bruno"]
[Black "Michalek, Jan"]
[Result "0-1"]
[ECO "A34"]
[WhiteElo "2117"]
[BlackElo "2251"]
[Annotator "NA"]
[PlyCount "66"]
[EventDate "2020.01.18"]
[EventType "tourn"]
[EventCountry "CZE"]
[SourceTitle "playchess.com"]
[Source "ChessBase"]
[SourceQuality "1"]
[TimeControl "40/5400+30:1800+30"]

1. e4 g6 2. c4 Bg7 3. Nc3 c5 4. Nge2 Nc6 5. g3 Ne5 6. Bg2 Nd3+ 7. Kf1 d6 8. Qc2 Nxc1 9. Rxc1 Nf6 10. d3 h5 11. h4 Nd7 12. Bh3 e6 13. Kg2 Ne5 14. Rcd1 Nc6 15. Rde1 g5 16. hxg5 Qxg5 17. a3 Bd7 18. d4 Bxd4 19. Nb5 Ke7 20. f4 Qg7 21. b4 Rag8 22. Rhf1 b6 23. Rf3 Rc8 24. Nexd4 Nxd4 25. Nxd4 cxd4 26. Qd3 b5 27. cxb5 Rc3 28. Qf1 Rhc8 29. e5 dxe5 30. f5 Rxf3 31. Qxf3 exf5 32. Qd5 f6 33. Bxf5 Bxf5 0-1